fUST/lending_fUST_20250208
["ID","MTS","AMOUNT","RATE_DAILY","PERIOD"]
[352194824,1738989053368,-1591.73,0.00011369,2]
[352194825,1738989053378,-500.0,0.00011369,2]
[352194826,1738989053387,-39.2954756,0.00011369,2]
[352194827,1738989053400,-460.7045244,0.00011369,2]
[352194828,1738989053411,-230.4454756,0.00011369,2]
[352194829,1738989053795,-500.0,0.00010958,2]
[352194830,1738989053804,-500.0,0.00010958,2]
[352194831,1738989053813,-579.44,0.00010958,2]
[352194832,1738989053823,-58.8390284,0.00011369,2]
[352194833,1738989053832,-500.0,0.00011369,2]
[352194834,1738989053841,-289.284504,0.00011369,2]
[352194835,1738989053852,-502.53382021,0.00011369,2]
[352194836,1738989053862,-293.078191,0.00011369,2]
[352194837,1738989053871,-500.0,0.00011369,2]
[352194838,1738989053881,-500.0,0.00011369,2]
[352194839,1738989053890,-500.0,0.00011369,2]
[352194840,1738989053899,-293.078191,0.00011369,2]
[352194841,1738989053908,-499.27873864,0.00011369,2]
[352194842,1738989053918,-500.0,0.00011369,2]
[352194843,1738989053927,-206.93847644,0.00011369,2]
[352194844,1738989053937,-608.67,0.00011369,2]
[352194845,1738989053946,-865.57,0.00011369,2]
[352194846,1738989053955,-1273.5,0.00011369,2]
[352194847,1738989053965,-659.87,0.00011369,2]
[352194848,1738989053974,-188.53,0.00011369,2]
[352194849,1738989053983,-1149.86,0.00011369,2]
[352194850,1738989053993,-500.0,0.00011369,2]
[352194851,1738989054002,-939.87,0.00011369,2]
[352194852,1738989054011,-563.81,0.00011369,2]
[352194853,1738989054021,-2461.11,0.00011369,2]
[352194854,1738989054030,-151.0,0.00011369,2]
[352194855,1738989054039,-626.99,0.00011369,2]
[352194856,1738989054048,-924.85,0.00011369,2]
[352194857,1738989054057,-500.0,0.00011369,2]
[352194858,1738989054067,-1193.94,0.00011369,2]
[352194859,1738989054075,-896.8,0.00011369,2]
[352194860,1738989054084,-502.46304177,0.00011369,2]
[352194861,1738989054094,-1086.06,0.00011369,2]
[352194862,1738989054104,-500.0,0.00011369,2]
[352194863,1738989054113,-568.7,0.00011369,2]
[352194864,1738989054123,-500.0,0.00011369,2]
[352194865,1738989054134,-151.0,0.00011369,2]
[352194866,1738989054144,-3480.66841908,0.00011369,2]
[352194867,1738989054155,-901.86889685,0.00011369,2]
[352194868,1738989900098,-5000.0,0.00010022,2]
[352194869,1738989900121,-300.0,0.00010123,2]
[352194870,1738989900144,-15630.3190047,0.00010124,2]
[352194871,1738989900168,-8102.7872122,0.0001036,2]
[352194872,1738989900191,-171.0,0.00010845,2]
[352194873,1738989900216,-500.0,0.00010857,2]
[352194874,1738989900240,-500.0,0.00010857,2]
[352194875,1738989900266,-383.71277948,0.00010857,2]
[352194876,1738989900291,-29412.18100362,0.00010858,2]
[352194912,1738990231925,-2342.3,9.922e-05,2]
[352194920,1738990231984,-2657.7,9.922e-05,2]
[352194922,1738990231994,-300.0,0.00010957,2]
[352194924,1738990232003,-500.0,0.00010957,2]
[352194926,1738990232012,-171.30758199,0.00010957,2]
[352194927,1738990232022,-500.0,0.00010958,2]
[352194928,1738990232031,-500.0,0.00010958,2]
[352194930,1738990232040,-501.64481347,0.00010958,2]
[352194932,1738990232049,-500.0,0.00010958,2]
[352194934,1738990232058,-500.0,0.00010958,2]
[352194936,1738990232068,-500.0,0.00010958,2]
[352194938,1738990232077,-500.0,0.00010958,2]
[352194940,1738990232086,-355.4415569,0.00010958,2]
[352194942,1738990232098,-144.5584431,0.00010958,2]
[352194944,1738990232107,-500.0,0.00010958,2]
[352194946,1738990232116,-238.89758634,0.00010958,2]
[352194948,1738990232128,-261.10241366,0.00010958,2]
[352194951,1738990232137,-59.95888678,0.00010958,2]
[352195163,1738990237922,-440.04111322,0.00010958,2]
[352195164,1738990237931,-500.0,0.00010958,2]
[352195165,1738990237940,-500.0,0.00010958,2]
[352195166,1738990237949,-502.42867812,0.00010958,2]
[352195167,1738990237959,-500.0,0.00010958,2]
[352195168,1738990237968,-500.0,0.00010958,2]
[352195170,1738990237978,-500.0,0.00010958,2]
[352195172,1738990237987,-580.87,0.00010958,2]
[352195174,1738990237997,-500.0,0.00010958,2]
[352195175,1738990238006,-502.76170661,0.00010958,2]
[352195177,1738990238015,-500.0,0.00010958,2]
[352195179,1738990238025,-500.0,0.00010958,2]
[352195181,1738990238034,-500.0,0.00010958,2]
[352195183,1738990238044,-500.0,0.00010958,2]
[352195185,1738990238053,-500.0,0.00010958,2]
[352195187,1738990238063,-500.0,0.00010958,2]
[352195189,1738990238072,-500.0,0.00010958,2]
[352195191,1738990238081,-500.0,0.00010958,2]
[352195193,1738990238092,-500.0,0.00010958,2]
[352195195,1738990238102,-500.0,0.00010958,2]
[352195197,1738990238112,-500.0,0.00010958,2]
[352195198,1738990238122,-551.38985009,0.00010958,2]
[352195199,1738990238131,-500.0,0.00010958,2]
[352195200,1738990238141,-500.0,0.00010958,2]
[352195201,1738990238151,-500.0,0.00010958,2]
[352195202,1738990238160,-500.0,0.00010958,2]
[352195203,1738990238172,-500.0,0.00010958,2]
[352195204,1738990238181,-500.0,0.00010958,2]
[352195205,1738990238190,-500.0,0.00010958,2]
[352195206,1738990238199,-528.58042909,0.00010958,2]
[352195207,1738990238209,-500.0,0.00010958,2]
[352195208,1738990238219,-500.0,0.00010958,2]
[352195209,1738990238228,-500.0,0.00010958,2]
[352195210,1738990238238,-500.0,0.00010958,2]
[352195211,1738990238249,-500.0,0.00010958,2]
[352195212,1738990238258,-500.0,0.00010958,2]
[352195213,1738990238268,-500.0,0.00010958,2]
[352195214,1738990238278,-500.0,0.00010958,2]
[352195215,1738990238287,-500.0,0.00010958,2]
[352195216,1738990238297,-500.0,0.00010958,2]
[352195217,1738990238306,-500.0,0.00010958,2]
[352195218,1738990238316,-500.0,0.00010958,2]
[352195219,1738990238325,-500.0,0.00010958,2]
[352195220,1738990238334,-509.43292773,0.00010958,2]
[352195221,1738990238344,-500.0,0.00010958,2]
[352195222,1738990238355,-500.0,0.00010958,2]
[352195223,1738990238365,-500.0,0.00010958,2]
[352195224,1738990238382,-221.98709974,0.00010958,2]
[352195225,1738990238396,-500.0,0.00010958,2]
[352195226,1738990238406,-500.0,0.00010958,2]
[352195227,1738990238418,-472.55864297,0.00010958,2]
[352195228,1738990238428,-500.0,0.00010958,2]
[352195229,1738990238437,-500.0,0.00010958,2]
[352195230,1738990238447,-500.0,0.00010958,2]
[352195231,1738990238456,-500.0,0.00010958,2]
[352195232,1738990238466,-500.0,0.00010958,2]
[352195233,1738990238476,-500.0,0.00010958,2]
[352195234,1738990238486,-500.0,0.00010958,2]
[352195235,1738990238496,-500.0,0.00010958,2]
[352195236,1738990238506,-500.0,0.00010958,2]
[352195237,1738990238519,-500.0,0.00010958,2]
[352195238,1738990238529,-715.79,0.00010958,2]
[352195239,1738990238539,-500.0,0.00010958,2]
[352195240,1738990238548,-500.0,0.00010958,2]
[352195241,1738990238559,-339.41647117,0.00010958,2]
[352195242,1738990238569,-782.62,0.00010958,2]
[352195243,1738990238579,-500.0,0.00010958,2]
[352195244,1738990238591,-500.0,0.00010958,2]
[352195245,1738990238601,-507.28469457,0.00010958,2]
[352195246,1738990238610,-176.11799159,0.00010958,2]
[352195247,1738990238620,-500.0,0.00010958,2]
[352195248,1738990238630,-500.0,0.00010958,2]
[352195249,1738990238639,-504.59543926,0.00010958,2]
[352195250,1738990238649,-500.0,0.00010958,2]
[352195251,1738990238659,-500.0,0.00010958,2]
[352195252,1738990238668,-512.03276949,0.00010958,2]
[352195253,1738990238678,-500.0,0.00010958,2]
[352195254,1738990238688,-500.0,0.00010958,2]
[352195255,1738990238697,-500.0,0.00010958,2]
[352195256,1738990238707,-958.4,0.00010958,2]
[352195257,1738990238717,-500.0,0.00010958,2]
[352195258,1738990238728,-500.0,0.00010958,2]
[352195259,1738990238737,-500.0,0.00010958,2]
[352195260,1738990238747,-500.0,0.00010958,2]
[352195261,1738990238756,-500.0,0.00010958,2]
[352195262,1738990238766,-500.0,0.00010958,2]
[352195263,1738990238775,-500.0,0.00010958,2]
[352195264,1738990238785,-500.0,0.00010958,2]
[352195265,1738990238795,-1239.19,0.00010958,2]
[352195266,1738990238804,-569.77,0.00010958,2]
[352195267,1738990238814,-500.0,0.00010958,2]
[352195268,1738990238824,-500.0,0.00010958,2]
[352195269,1738990238834,-1267.01,0.00010958,2]
[352195270,1738990238843,-500.0,0.00010958,2]
[352195271,1738990238853,-503.31847983,0.00010958,2]
[352195272,1738990238863,-232.53262935,0.00010958,2]
[352195273,1738990238872,-500.0,0.00010958,2]
[352195274,1738990238882,-500.0,0.00010958,2]
[352195275,1738990238891,-500.0,0.00010958,2]
[352195276,1738990238900,-500.0,0.00010958,2]
[352195277,1738990238910,-500.0,0.00010958,2]
[352195278,1738990238921,-500.0,0.00010958,2]
[352195279,1738990238931,-500.0,0.00010958,2]
[352195280,1738990238941,-500.0,0.00010958,2]
[352195281,1738990238951,-913.82,0.00010958,2]
[352195282,1738990238960,-287.05826935,0.00010958,2]
[352195283,1738990238970,-502.27204048,0.00010958,2]
[352195284,1738990238979,-500.0,0.00010958,2]
[352195285,1738990238989,-500.0,0.00010958,2]
[352195286,1738990238999,-500.0,0.00010958,2]
[352195287,1738990239010,-500.0,0.00010958,2]
[352195288,1738990239019,-500.0,0.00010958,2]
[352195289,1738990239029,-500.0,0.00010958,2]
[352195290,1738990239039,-500.0,0.00010958,2]
[352195291,1738990239048,-500.0,0.00010958,2]
[352195292,1738990239057,-500.0,0.00010958,2]
[352195293,1738990239067,-500.0,0.00010958,2]
[352195294,1738990239077,-500.0,0.00010958,2]
[352195295,1738990239087,-500.0,0.00010958,2]
[352195296,1738990239096,-500.0,0.00010958,2]
[352195297,1738990239106,-500.0,0.00010958,2]
[352195298,1738990239115,-500.0,0.00010958,2]
[352195299,1738990239125,-513.56787768,0.00010958,2]
[352195300,1738990239134,-500.0,0.00010958,2]
[352195301,1738990239144,-500.0,0.00010958,2]
[352195302,1738990239154,-500.0,0.00010958,2]
[352195303,1738990239163,-500.0,0.00010958,2]
[352195304,1738990239175,-500.0,0.00010958,2]
[352195305,1738990239185,-500.0,0.00010958,2]
[352195306,1738990239194,-553.37,0.00010958,2]
[352195307,1738990239204,-1221.37,0.00010958,2]
[352195308,1738990239214,-500.75548031,0.00010958,2]
[352195309,1738990239227,-500.0,0.00010958,2]
[352195311,1738990239237,-498.13222151,0.00010958,2]
[352195312,1738990239247,-500.0,0.00010958,2]
[352195314,1738990239257,-500.0,0.00010958,2]
[352195315,1738990239267,-500.0,0.00010958,2]
[352195316,1738990239276,-500.0,0.00010958,2]
[352195317,1738990239287,-500.0,0.00010958,2]
[352195318,1738990239296,-500.0,0.00010958,2]
[352195319,1738990239306,-500.0,0.00010958,2]
[352195320,1738990239316,-511.48685198,0.00010958,2]
[352195321,1738990239326,-500.0,0.00010958,2]
[352195322,1738990239335,-500.0,0.00010958,2]
[352195323,1738990239345,-567.88342277,0.00010958,2]
[352195324,1738990239355,-500.0,0.00010958,2]
[352195325,1738990239364,-500.0,0.00010958,2]
[352195326,1738990239374,-500.0,0.00010958,2]
[352195327,1738990239385,-500.0,0.00010958,2]
[352195328,1738990239395,-500.0,0.00010958,2]
[352195329,1738990239405,-500.0,0.00010958,2]
[352195330,1738990239416,-500.0,0.00010958,2]
[352195331,1738990239427,-500.0,0.00010958,2]
[352195332,1738990239437,-866.28,0.00010958,2]
[352195334,1738990239447,-500.0,0.00010958,2]
[352195335,1738990239456,-502.64653152,0.00010958,2]
[352195336,1738990239466,-500.0,0.00010958,2]
[352195337,1738990239476,-2615.21,0.00010958,2]
[352195338,1738990239486,-500.0,0.00010958,2]
[352195339,1738990239496,-500.0,0.00010958,2]
[352195340,1738990239505,-500.0,0.00010958,2]
[352195341,1738990239519,-239.83203427,0.00010958,2]
[352195342,1738990239529,-515.71146168,0.00010958,2]
[352195343,1738990239539,-500.0,0.00010958,2]
[352195344,1738990239548,-512.83333668,0.00010958,2]
[352195345,1738990239558,-500.0,0.00010958,2]
[352195346,1738990239567,-1085.44,0.00010958,2]
[352195347,1738990239577,-500.0,0.00010958,2]
[352195348,1738990239586,-256.2899064,0.00010958,2]
[352195349,1738990239596,-2229.22,0.00010958,2]
[352195350,1738990239606,-500.0,0.00010958,2]
[352195351,1738990239616,-500.64885768,0.00010958,2]
[352195352,1738990239625,-500.0,0.00010958,2]
[352195354,1738990239635,-2768.84,0.00010958,2]
[352195355,1738990239645,-500.0,0.00010958,2]
[352195356,1738990239657,-532.09559786,0.00010958,2]
[352195357,1738990239666,-500.0,0.00010958,2]
[352195358,1738990239678,-500.0,0.00010958,2]
[352195363,1738990239891,-503.98600084,0.00010958,2]
[352195364,1738990239901,-503.89414347,0.00010958,2]
[352195365,1738990239911,-500.0,0.00010958,2]
[352195366,1738990239921,-500.0,0.00010958,2]
[352195367,1738990239930,-1534.43,0.00010958,2]
[352195368,1738990239940,-1163.48,0.00010958,2]
[352195369,1738990239951,-500.0,0.00010958,2]
[352195370,1738990239961,-500.0,0.00010958,2]
[352195371,1738990239971,-500.0,0.00010958,2]
[352195372,1738990239980,-500.0,0.00010958,2]
[352195373,1738990239989,-500.0,0.00010958,2]
[352195374,1738990239999,-500.0,0.00010958,2]
[352195375,1738990240008,-500.0,0.00010958,2]
[352195376,1738990240018,-993.76,0.00010958,2]
[352195377,1738990240028,-500.0,0.00010958,2]
[352195378,1738990240037,-630.82,0.00010958,2]
[352195379,1738990240048,-500.0,0.00010958,2]
[352195380,1738990240057,-300.0,0.00010958,2]
[352195381,1738990240068,-540.32,0.00010958,2]
[352195382,1738990240077,-500.0,0.00010958,2]
[352195383,1738990240087,-500.0,0.00010958,2]
[352195384,1738990240096,-500.0,0.00010958,2]
[352195385,1738990240106,-500.0,0.00010958,2]
[352195386,1738990240115,-500.0,0.00010958,2]
[352195387,1738990240125,-500.0,0.00010958,2]
[352195388,1738990240134,-500.0,0.00010958,2]
[352195389,1738990240144,-500.0,0.00010958,2]
[352195390,1738990240154,-500.0,0.00010958,2]
[352195391,1738990240164,-500.0,0.00010958,2]
[352195392,1738990240174,-500.0,0.00010958,2]
[352195393,1738990240184,-500.0,0.00010958,2]
[352195394,1738990240193,-604.28064741,0.00010958,2]
[352195395,1738990240203,-500.0,0.00010958,2]
[352195396,1738990240213,-500.0,0.00010958,2]
[352195397,1738990240222,-500.0,0.00010958,2]
[352195398,1738990240232,-500.0,0.00010958,2]
[352195399,1738990240242,-500.0,0.00010958,2]
[352195400,1738990240251,-500.0,0.00010958,2]
[352195401,1738990240261,-500.0,0.00010958,2]
[352195402,1738990240270,-500.0,0.00010958,2]
[352195403,1738990240280,-522.07999047,0.00010958,2]
[352195404,1738990240289,-500.0,0.00010958,2]
[352195405,1738990240300,-500.0,0.00010958,2]
[352195406,1738990240313,-600.86,0.00010958,2]
[352195407,1738990240327,-500.0,0.00010958,2]
[352195408,1738990240337,-501.42696385,0.00010958,2]
[352195409,1738990240346,-500.0,0.00010958,2]
[352195410,1738990240355,-500.0,0.00010958,2]
[352195411,1738990240366,-500.0,0.00010958,2]
[352195412,1738990240375,-500.0,0.00010958,2]
[352195413,1738990240385,-1319.41,0.00010958,2]
[352195414,1738990240395,-860.84,0.00010958,2]
[352195415,1738990240405,-500.0,0.00010958,2]
[352195416,1738990240414,-500.0,0.00010958,2]
[352195417,1738990240425,-940.05,0.00010958,2]
[352195418,1738990240435,-500.0,0.00010958,2]
[352195419,1738990240445,-500.0,0.00010958,2]
[352195420,1738990240461,-500.0,0.00010958,2]
[352195421,1738990240470,-500.0,0.00010958,2]
[352195422,1738990240480,-502.21787482,0.00010958,2]
[352195423,1738990240490,-500.65593778,0.00010958,2]
[352195424,1738990240499,-500.0,0.00010958,2]
[352195425,1738990240510,-501.00860258,0.00010958,2]
[352195426,1738990240523,-500.0,0.00010958,2]
[352195427,1738990240533,-500.0,0.00010958,2]
[352195428,1738990240543,-501.9465053,0.00010958,2]
[352195429,1738990240553,-500.0,0.00010958,2]
[352195430,1738990240563,-503.55351873,0.00010958,2]
[352195431,1738990240572,-500.0,0.00010958,2]
[352195432,1738990240581,-500.0,0.00010958,2]
[352195433,1738990240590,-500.56659313,0.00010958,2]
[352195434,1738990240600,-2535.11,0.00010958,2]
[352195435,1738990240609,-500.0,0.00010958,2]
[352195436,1738990240619,-501.08375953,0.00010958,2]
[352195437,1738990240628,-500.0,0.00010958,2]
[352195438,1738990240637,-501.06338174,0.00010958,2]
[352195439,1738990240647,-503.89976115,0.00010958,2]
[352195440,1738990240657,-500.0,0.00010958,2]
[352195441,1738990240666,-500.0,0.00010958,2]
[352195442,1738990240676,-500.0,0.00010958,2]
[352195443,1738990240687,-500.0,0.00010958,2]
[352195444,1738990240696,-10241.52,0.00010958,2]
[352195445,1738990240706,-500.0,0.00010958,2]
[352195446,1738990240715,-37711.29,0.00010958,2]
[352195447,1738990240725,-500.0,0.00010958,2]
[352195448,1738990240734,-500.0,0.00010958,2]
[352195449,1738990240744,-1144.37,0.00010958,2]
[352195450,1738990240754,-500.0,0.00010958,2]
[352195451,1738990240763,-2984.12,0.00010958,2]
[352195452,1738990240774,-500.0,0.00010958,2]
[352195453,1738990240783,-500.0,0.00010958,2]
[352195454,1738990240793,-504.07096815,0.00010958,2]
[352195455,1738990240802,-500.0,0.00010958,2]
[352195456,1738990240812,-500.0,0.00010958,2]
[352195457,1738990240822,-554.79330933,0.00010958,2]
[352195458,1738990240832,-505.87272741,0.00010958,2]
[352195459,1738990240841,-1093.36,0.00010958,2]
[352195460,1738990240851,-500.0,0.00010958,2]
[352195461,1738990240861,-500.0,0.00010958,2]
[352195462,1738990240870,-500.0,0.00010958,2]
[352195463,1738990240880,-170.60188658,0.00010958,2]
[352195464,1738990240890,-500.0,0.00010958,2]
[352195465,1738990240899,-500.0,0.00010958,2]
[352195466,1738990240908,-1528.49,0.00010958,2]
[352195467,1738990240918,-508.99181733,0.00010958,2]
[352195468,1738990240929,-500.0,0.00010958,2]
[352195469,1738990240939,-500.0,0.00010958,2]
[352195470,1738990240949,-500.0,0.00010958,2]
[352195471,1738990240958,-500.0,0.00010958,2]
[352195472,1738990240967,-500.0,0.00010958,2]
[352195473,1738990240977,-500.0,0.00010958,2]
[352195474,1738990240986,-1552.03,0.00010958,2]
[352195475,1738990240996,-500.0,0.00010958,2]
[352195476,1738990241005,-500.0,0.00010958,2]
[352195477,1738990241015,-500.0,0.00010958,2]
[352195478,1738990241025,-502.19243531,0.00010958,2]
[352195479,1738990241035,-502.19880338,0.00010958,2]
[352195480,1738990241044,-500.0,0.00010958,2]
[352195481,1738990241054,-887.71,0.00010958,2]
[352195482,1738990241064,-304.71720517,0.00010958,2]
[352195483,1738990241073,-500.0,0.00010958,2]
[352195484,1738990241083,-500.0,0.00010958,2]
[352195485,1738990241092,-500.0,0.00010958,2]
[352195486,1738990241102,-500.0,0.00010958,2]
[352195487,1738990241111,-500.0,0.00010958,2]
[352195488,1738990241121,-500.0,0.00010958,2]
[352195489,1738990241131,-500.0,0.00010958,2]
[352195490,1738990241140,-500.0,0.00010958,2]
[352195491,1738990241150,-1302.6,0.00010958,2]
[352195492,1738990241160,-2467.93,0.00010958,2]
[352195493,1738990241169,-2467.93,0.00010958,2]
[352195494,1738990241181,-2467.93,0.00010958,2]
[352195495,1738990241191,-2467.93,0.00010958,2]
[352195496,1738990241201,-2467.93,0.00010958,2]
[352195497,1738990241210,-2467.93,0.00010958,2]
[352195498,1738990241220,-2467.93,0.00010958,2]
[352195499,1738990241230,-2467.93,0.00010958,2]
[352195500,1738990241240,-2467.93,0.00010958,2]
[352195501,1738990241250,-2467.93,0.00010958,2]
[352195502,1738990241260,-500.0,0.00010958,2]
[352195503,1738990241270,-2467.93,0.00010958,2]
[352195504,1738990241283,-500.0,0.00010958,2]
[352195505,1738990241294,-2467.93,0.00010958,2]
[352195506,1738990241305,-2467.93,0.00010958,2]
[352195507,1738990241315,-2467.93,0.00010958,2]
[352195508,1738990241326,-2467.93,0.00010958,2]
[352195509,1738990241337,-500.0,0.00010958,2]
[352195510,1738990241348,-500.0,0.00010958,2]
[352195511,1738990241358,-500.0,0.00010958,2]
[352195512,1738990241367,-313.30447206,0.00010958,2]
[352195513,1738990241376,-500.0,0.00010958,2]
[352195514,1738990241386,-758.3,0.00010958,2]
[352195515,1738990241395,-500.0,0.00010958,2]
[352195516,1738990241405,-663.51,0.00010958,2]
[352195517,1738990241415,-500.0,0.00010958,2]
[352195518,1738990241426,-500.0,0.00010958,2]
[352195519,1738990241436,-500.0,0.00010958,2]
[352195520,1738990241446,-597.18058898,0.00010958,2]
[352195521,1738990241455,-500.0,0.00010958,2]
[352195522,1738990241465,-500.0,0.00010958,2]
[352195523,1738990241475,-500.0,0.00010958,2]
[352195524,1738990241486,-500.0,0.00010958,2]
[352195525,1738990241496,-502.31845736,0.00010958,2]
[352195526,1738990241506,-500.0,0.00010958,2]
[352195527,1738990241519,-502.45607472,0.00010958,2]
[352195528,1738990241528,-500.0,0.00010958,2]
[352195529,1738990241538,-500.0,0.00010958,2]
[352195530,1738990241547,-500.0,0.00010958,2]
[352195531,1738990241557,-1120.15,0.00010958,2]
[352195532,1738990241567,-500.0,0.00010958,2]
[352195533,1738990241577,-500.0,0.00010958,2]
[352195534,1738990241587,-500.0,0.00010958,2]
[352195535,1738990241596,-500.0,0.00010958,2]
[352195536,1738990241606,-500.0,0.00010958,2]
[352195537,1738990241615,-683.23,0.00010958,2]
[352195538,1738990241624,-500.0,0.00010958,2]
[352195539,1738990241633,-500.0,0.00010958,2]
[352195540,1738990241643,-500.0,0.00010958,2]
[352195541,1738990241652,-500.72600182,0.00010958,2]
[352195542,1738990241661,-503.58949611,0.00010958,2]
[352195543,1738990241671,-503.72750539,0.00010958,2]
[352195544,1738990241680,-500.61542001,0.00010958,2]
[352195545,1738990241689,-503.12982092,0.00010958,2]
[352195546,1738990241698,-500.0,0.00010958,2]
[352195547,1738990241707,-185.73166612,0.00010958,2]
[352195548,1738990241716,-500.0,0.00010958,2]
[352195549,1738990241726,-500.0,0.00010958,2]
[352195550,1738990241735,-500.0,0.00010958,2]
[352195551,1738990241745,-500.0,0.00010958,2]
[352195552,1738990241754,-500.0,0.00010958,2]
[352195553,1738990241763,-1080.15,0.00010958,2]
[352195554,1738990241772,-500.0,0.00010958,2]
[352195555,1738990241781,-502.06780739,0.00010958,2]
[352195556,1738990241791,-500.0,0.00010958,2]
[352195557,1738990241801,-500.0,0.00010958,2]
[352195558,1738990241810,-500.0,0.00010958,2]
[352195559,1738990241819,-500.0,0.00010958,2]
[352195560,1738990241829,-500.0,0.00010958,2]
[352195561,1738990241838,-500.0,0.00010958,2]
[352195562,1738990241847,-500.0,0.00010958,2]
[352195563,1738990241857,-500.93684788,0.00010958,2]
[352195564,1738990241866,-500.0,0.00010958,2]
[352195565,1738990241875,-500.0,0.00010958,2]
[352195566,1738990241885,-500.0,0.00010958,2]
[352195567,1738990241895,-500.0,0.00010958,2]
[352195568,1738990241904,-500.0,0.00010958,2]
[352195569,1738990241914,-500.0,0.00010958,2]
[352195570,1738990241925,-500.0,0.00010958,2]
[352195571,1738990241934,-500.59712672,0.00010958,2]
[352195572,1738990241944,-500.0,0.00010958,2]
[352195573,1738990241954,-500.0,0.00010958,2]
[352195574,1738990241965,-500.0,0.00010958,2]
[352195575,1738990241974,-500.0,0.00010958,2]
[352195576,1738990241985,-2739.64,0.00010958,2]
[352195577,1738990241994,-542.82,0.00010958,2]
[352195578,1738990242004,-500.0,0.00010958,2]
[352195579,1738990242013,-552.64499874,0.00010958,2]
[352195580,1738990242023,-2267.91,0.00010958,2]
[352195581,1738990242032,-500.0,0.00010958,2]
[352195582,1738990242044,-4639.19,0.00010958,2]
[352195583,1738990242053,-500.0,0.00010958,2]
[352195584,1738990242063,-594.98,0.00010958,2]
[352195585,1738990242074,-500.0,0.00010958,2]
[352195586,1738990242100,-500.87630365,0.00010958,2]
[352195587,1738990242113,-2554.63,0.00010958,2]
[352195588,1738990242122,-503.05729838,0.00010958,2]
[352195589,1738990242133,-500.0,0.00010958,2]
[352195590,1738990242143,-500.0,0.00010958,2]
[352195591,1738990242153,-501.87586055,0.00010958,2]
[352195592,1738990242163,-500.0,0.00010958,2]
[352195593,1738990242173,-500.0,0.00010958,2]
[352195594,1738990242183,-500.0,0.00010958,2]
[352195595,1738990242192,-500.0,0.00010958,2]
[352195596,1738990242202,-500.0,0.00010958,2]
[352195597,1738990242211,-500.0,0.00010958,2]
[352195598,1738990242220,-500.0,0.00010958,2]
[352195599,1738990242229,-983.21,0.00010958,2]
[352195600,1738990242238,-500.0,0.00010958,2]
[352195601,1738990242248,-609.19,0.00010958,2]
[352195602,1738990242257,-500.0,0.00010958,2]
[352195604,1738990242267,-500.0,0.00010958,2]
[352195606,1738990242276,-500.0,0.00010958,2]
[352195608,1738990242285,-847.91,0.00010958,2]
[352195609,1738990242294,-500.0,0.00010958,2]
[352195610,1738990242303,-501.07879346,0.00010958,2]
[352195611,1738990242312,-500.0,0.00010958,2]
[352195612,1738990242321,-500.0,0.00010958,2]
[352195613,1738990242330,-500.0,0.00010958,2]
[352195614,1738990242339,-500.0,0.00010958,2]
[352195616,1738990242348,-1322.15,0.00010958,2]
[352195618,1738990242358,-500.0,0.00010958,2]